fUSD/lending_fUSD_20240301
["ID","MTS","AMOUNT","RATE_DAILY","PERIOD"]
[315923113,1709284116515,434.48334085,5e-05,2]
[315923115,1709284126277,549.18300522,5e-05,2]
[315923116,1709284146287,127.54026596,5e-05,2]
[315923117,1709284146310,421.64273926,5e-05,2]
[315923124,1709284164282,417.53704404,5e-05,2]
[315923129,1709284202213,255.72151935,5e-05,2]
[315923140,1709284231794,-210.0,0.00011463,2]
[315923141,1709284231804,-85.22773867,0.00015508,6]
[315923142,1709284231934,-124.77226133,0.00015508,6]
[315923143,1709284231944,-150.0,0.00016736,2]
[315923144,1709284231954,-150.0,0.00016736,2]
[315923145,1709284231963,-6819.76615918,0.00016737,2]
[315923146,1709284232043,-3926.790178,0.00016737,2]
[315923147,1709284232053,-4158.3008659,0.00016738,2]
[315923148,1709284232063,-1126.14279123,0.00016738,2]
[315923149,1709284232073,-246.0273707,0.00016738,2]
[315923150,1709284232083,-1898.50165483,0.00016738,2]
[315923151,1709284232093,-284.96069898,0.00016738,2]
[315923152,1709284232103,-150.0,0.00016881,2]
[315923153,1709284232112,-150.0,0.00016881,2]
[315923154,1709284232122,-150.0,0.00016881,2]
[315923155,1709284232132,-150.0,0.00016881,2]
[315923156,1709284232145,-150.0,0.00016881,2]
[315923157,1709284232154,-150.0,0.00016881,2]
[315923158,1709284232164,-150.0,0.00016881,2]
[315923159,1709284232174,-150.0,0.00016881,2]
[315923160,1709284232184,-150.0,0.00016881,2]
[315923185,1709284232556,-150.0,0.00016881,2]
[315923187,1709284232567,-150.0,0.00016881,2]
[315923188,1709284232577,-150.0,0.00016881,2]
[315923189,1709284232587,-150.0,0.00016881,2]
[315923190,1709284232596,-150.0,0.00016881,2]
[315923191,1709284232606,-150.0,0.00016881,2]
[315923192,1709284232615,-150.0,0.00016881,2]
[315923193,1709284232624,-300.0,0.00016881,2]
[315923194,1709284232633,-1609.86061752,0.00017779,7]
[315923195,1709284232642,-60876.48116019,0.0001778,2]
[315923196,1709284232651,-165.70254261,0.00018076,2]
[315923197,1709284232661,-210.0,0.0001841,2]
[315923199,1709284232670,-239.77,0.00018565,10]
[315923201,1709284232679,-478.6,0.00018578,2]
[315923203,1709284232689,-499.99,0.00018578,2]
[315923205,1709284232699,-1404.7,0.00018745,2]
[315923207,1709284232708,-151.3,0.00018752,2]
[315923209,1709284232717,-1000.0,0.0001877,2]
[315923211,1709284232727,-200.0,0.00018793,2]
[315923213,1709284232736,-18558.33,0.00018818,2]
[315923215,1709284232749,-200.0,0.00018837,2]
[315923217,1709284232759,-8905.55,0.00018837,2]
[315923219,1709284232768,-396.32,0.0001887,2]
[315923221,1709284232777,-151.3,0.00018874,2]
[315923223,1709284232787,-250.0,0.00018924,2]
[315923225,1709284232796,-375.34,0.00018951,10]
[315923227,1709284232806,-151.3,0.00018996,2]
[315923229,1709284232815,-857.0,0.00019008,2]
[315923231,1709284232824,-151.3,0.00019118,2]
[315923233,1709284232833,-500.0,0.00019178,2]
[315923235,1709284232843,-250.0,0.00019178,2]
[315923237,1709284232852,-151.3,0.00019241,2]
[315923239,1709284232862,-751.86,0.00019316,2]
[315923241,1709284232871,-151.3,0.00019363,2]
[315923243,1709284232880,-165.70254261,0.00019415,2]
[315923245,1709284232889,-151.3,0.00019485,2]
[315923247,1709284232899,-236.71,0.00019527,2]
[315923249,1709284232907,-210.0,0.00019553,11]
[315923251,1709284232917,-151.3,0.00019607,2]
[315923253,1709284232926,-181.54,0.0001969,2]
[315923255,1709284232935,-151.3,0.00019729,2]
[315923257,1709284232944,-260.93,0.00019755,2]
[315923259,1709284232953,-168.76820997,0.000199,2]
[315923261,1709284232962,-173.56,0.00019922,2]
[315923263,1709284232972,-704.7915004,0.0002,2]
[315923265,1709284232981,-19321.60774547,0.0002,2]
[315923267,1709284232990,-313.86021224,0.0002,2]
[315923269,1709284233002,-1728.19472114,0.0002,2]
[315923271,1709284233012,-350.0,0.0002,3]
[315923272,1709284233021,-168.76820995,0.00020026,2]
[315923273,1709284233031,-462.54,0.00020483,2]
[315923274,1709284233040,-236.71,0.00020504,2]
[315923275,1709284233049,-30635.6411,0.00020698,2]
[315923276,1709284233059,-165.70254261,0.00020753,2]
[315923277,1709284233069,-703.3492,0.00020798,2]
[315923278,1709284233079,-500.0,0.00020798,2]
[315923279,1709284233088,-97205.64488272,0.00020798,2]
[315923280,1709284233629,-2000.67061728,0.00020798,2]
[315923281,1709284233639,-737.72,0.00020888,3]
[315923282,1709284233649,-1179.14108455,0.00020896,2]
[315923283,1709284233658,-408.69946908,0.00020897,2]
[315923284,1709284233667,-9747.20267399,0.00020897,2]
[315923285,1709284233679,-31519.98957067,0.00020897,2]
[315923286,1709284233691,-2930.00183038,0.00020897,2]
[315923287,1709284233765,-897.64498718,0.00020897,2]
[315923300,1709284237970,-62498.03766016,0.00020897,2]
[315923301,1709284237979,-519.22,0.00020917,2]
[315923302,1709284237989,-3333.69812335,0.00021,2]
[315923303,1709284237999,-711.390726,0.00021,2]
[315923304,1709284238008,-167.0,0.00021,2]
[315923305,1709284238017,-250.0,0.00021,2]
[315923306,1709284238026,-1655.06,0.00021096,2]
[315923307,1709284238036,-1000.0,0.00021117,2]
[315923308,1709284238045,-150.76010183,0.00021191,2]
[315923309,1709284238053,-150.0,0.00021191,2]
[315923310,1709284238062,-462.54,0.00021208,2]
[315923311,1709284238071,-21887.21708168,0.00021279,2]
[315923312,1709284238080,-168.76820995,0.00021314,2]
[315923313,1709284238090,-1071.16687935,0.0002145,6]
[315923314,1709284238099,-150.0,0.0002147,2]
[315923315,1709284238108,-187.69464993,0.0002147,2]
[315923316,1709284238117,-178.0,0.0002147,2]
[315923317,1709284238127,-1071.16687935,0.00021474,6]
[315923318,1709284238136,-236.71,0.0002148,2]
[315923319,1709284238147,-105645.0,0.00021481,2]
[315923321,1709284238156,-1071.16687935,0.00021481,6]
[315923322,1709284238165,-1404.7,0.00021485,2]
[315923323,1709284238174,-1071.16687935,0.00021492,6]
[315923324,1709284238183,-751.86,0.0002158,2]
[315923325,1709284238193,-365.64633018,0.000216,2]
[315923326,1709284238203,-290.701,0.00021658,2]
[315923327,1709284238211,-1198.185,0.00021658,2]
[315923328,1709284238222,-163.0,0.00021658,2]
[315923329,1709284238231,-7981.70957539,0.000218,2]
[315923330,1709284238240,-8477.558,0.00021817,2]
[315923332,1709284238251,-162.11569559,0.00021817,2]
[315923333,1709284238260,-750.0,0.000219,2]
[315923334,1709284238268,-4000.0,0.000219,2]
[315923335,1709284238277,-3677.62770173,0.000219,2]
[315923336,1709284238286,-208.84529428,0.00021907,2]
[315923337,1709284238296,-164.78594335,0.00021916,2]
[315923338,1709284238306,-155578.50632111,0.00021917,4]
[315923339,1709284238315,-497.21540184,0.00021917,2]
[315923340,1709284238324,-500.0,0.00021917,20]
[315923341,1709284238334,-502.95956196,0.00021917,2]
[315923342,1709284238343,-500.0,0.00021917,2]
[315923343,1709284238352,-500.0,0.00021917,2]
[315923344,1709284238362,-511.20753729,0.00021917,2]
[315923345,1709284238370,-500.0,0.00021917,2]
[315923346,1709284238379,-500.0,0.00021917,2]
[315923347,1709284238388,-173.04096374,0.00021917,2]
[315923348,1709284238397,-508.86238932,0.00021917,2]
[315923349,1709284238406,-427.34238961,0.00021917,2]
[315923350,1709284238415,-500.0,0.00021917,2]
[315923351,1709284238424,-500.0,0.00021917,2]
[315923352,1709284238433,-500.0,0.00021917,2]
[315923353,1709284238442,-500.0,0.00021917,2]
[315923354,1709284238450,-500.0,0.00021917,2]
[315923355,1709284238459,-500.0,0.00021917,2]
[315923356,1709284238468,-500.0,0.00021917,2]
[315923357,1709284238477,-855.09,0.00021917,2]
[315923358,1709284238486,-500.0,0.00021917,2]
[315923359,1709284238497,-531.78,0.00021917,2]
[315923360,1709284238508,-500.0,0.00021917,2]
[315923361,1709284238517,-506.79386045,0.00021917,2]
[315923362,1709284238526,-500.0,0.00021917,2]
[315923363,1709284238536,-500.0,0.00021917,2]
[315923364,1709284238545,-500.0,0.00021917,2]
[315923365,1709284238554,-500.0,0.00021917,2]
[315923366,1709284238563,-510.27081792,0.00021917,2]
[315923367,1709284238571,-523.02900504,0.00021917,2]
[315923368,1709284238581,-500.0,0.00021917,2]
[315923369,1709284238590,-500.0,0.00021917,2]
[315923370,1709284238599,-500.0,0.00021917,2]
[315923371,1709284238608,-500.0,0.00021917,2]
[315923372,1709284238617,-500.0,0.00021917,2]
[315923373,1709284238627,-500.0,0.00021917,2]
[315923374,1709284238636,-500.0,0.00021917,2]
[315923375,1709284238645,-500.0,0.00021917,2]
[315923376,1709284238655,-500.0,0.00021917,2]
[315923377,1709284238665,-500.0,0.00021917,2]
[315923378,1709284238674,-500.0,0.00021917,2]
[315923379,1709284238684,-500.0,0.00021917,2]
[315923380,1709284238694,-500.0,0.00021917,2]
[315923381,1709284238703,-500.0,0.00021917,2]
[315923382,1709284238712,-500.0,0.00021917,2]
[315923383,1709284238722,-502.80236785,0.00021917,2]
[315923384,1709284238731,-500.0,0.00021917,2]
[315923385,1709284238741,-505.74823268,0.00021917,2]
[315923386,1709284238751,-504.74702639,0.00021917,2]
[315923387,1709284238760,-202.05835858,0.00021917,2]
[315923388,1709284238769,-500.0,0.00021917,2]
[315923389,1709284238778,-500.0,0.00021917,2]
[315923390,1709284238788,-500.0,0.00021917,2]
[315923391,1709284238797,-500.0,0.00021917,2]
[315923392,1709284238806,-500.0,0.00021917,2]
[315923393,1709284238815,-500.0,0.00021917,2]
[315923394,1709284238824,-500.0,0.00021917,2]
[315923395,1709284238833,-500.0,0.00021917,2]
[315923396,1709284238842,-500.0,0.00021917,2]
[315923397,1709284238852,-500.0,0.00021917,2]
[315923398,1709284238862,-500.0,0.00021917,2]
[315923399,1709284238871,-500.0,0.00021917,2]
[315923400,1709284238881,-511.15756108,0.00021917,2]
[315923401,1709284238890,-500.0,0.00021917,2]
[315923402,1709284238899,-500.0,0.00021917,2]
[315923403,1709284238907,-500.0,0.00021917,2]
[315923404,1709284238917,-500.0,0.00021917,2]
[315923405,1709284238925,-500.0,0.00021917,2]
[315923406,1709284238935,-500.0,0.00021917,2]
[315923407,1709284238944,-539.80324573,0.00021917,2]
[315923408,1709284238953,-500.0,0.00021917,2]
[315923409,1709284238961,-500.0,0.00021917,2]
[315923410,1709284238970,-500.0,0.00021917,2]
[315923411,1709284238980,-500.0,0.00021917,2]
[315923412,1709284238989,-500.0,0.00021917,2]
[315923413,1709284238999,-500.0,0.00021917,2]
[315923414,1709284239008,-500.0,0.00021917,2]
[315923415,1709284239017,-505.26510212,0.00021917,2]
[315923416,1709284239025,-500.0,0.00021917,2]
[315923417,1709284239035,-500.0,0.00021917,2]
[315923418,1709284239044,-500.0,0.00021917,2]
[315923419,1709284239053,-547.32,0.00021917,2]
[315923420,1709284239062,-500.0,0.00021917,2]
[315923421,1709284239071,-500.0,0.00021917,2]
[315923422,1709284239080,-500.0,0.00021917,2]
[315923423,1709284239089,-500.0,0.00021917,2]
[315923424,1709284239099,-500.0,0.00021917,2]
[315923425,1709284239109,-500.0,0.00021917,2]
[315923426,1709284239118,-500.0,0.00021917,2]
[315923427,1709284239128,-511.09,0.00021917,2]
[315923428,1709284239139,-500.0,0.00021917,2]
[315923429,1709284239148,-500.0,0.00021917,2]
[315923430,1709284239158,-500.0,0.00021917,2]
[315923431,1709284239167,-500.0,0.00021917,2]
[315923432,1709284239176,-500.0,0.00021917,2]
[315923433,1709284239185,-500.0,0.00021917,2]
[315923434,1709284239195,-500.0,0.00021917,2]
[315923435,1709284239204,-500.0,0.00021917,2]
[315923436,1709284239213,-609.31,0.00021917,2]
[315923437,1709284239223,-500.0,0.00021917,2]
[315923438,1709284239233,-500.0,0.00021917,2]
[315923439,1709284239242,-500.0,0.00021917,2]
[315923440,1709284239253,-500.0,0.00021917,2]
[315923441,1709284239263,-500.0,0.00021917,2]
[315923442,1709284239272,-500.0,0.00021917,2]
[315923443,1709284239281,-500.0,0.00021917,2]
[315923444,1709284239290,-500.0,0.00021917,2]
[315923445,1709284239300,-812.45,0.00021917,2]
[315923446,1709284239310,-500.0,0.00021917,2]
[315923447,1709284239319,-500.0,0.00021917,2]
[315923448,1709284239328,-500.0,0.00021917,2]
[315923449,1709284239338,-500.0,0.00021917,2]
[315923450,1709284239347,-428.39007106,0.00021917,2]
[315923451,1709284239356,-500.0,0.00021917,2]
[315923452,1709284239366,-500.0,0.00021917,2]
[315923453,1709284239376,-500.0,0.00021917,2]
[315923454,1709284239385,-171.17394853,0.00021917,2]
[315923455,1709284239394,-500.0,0.00021917,2]
[315923456,1709284239404,-500.0,0.00021917,2]
[315923457,1709284239413,-278.53942206,0.00021917,2]
[315923458,1709284239422,-500.0,0.00021917,2]
[315923459,1709284239431,-595.32,0.00021917,2]
[315923460,1709284239441,-500.0,0.00021917,2]
[315923461,1709284239449,-500.0,0.00021917,2]
[315923462,1709284239458,-236.49982557,0.00021917,2]
[315923463,1709284239467,-747.82,0.00021917,2]
[315923464,1709284239477,-500.0,0.00021917,2]
[315923465,1709284239486,-500.0,0.00021917,2]
[315923466,1709284239495,-500.0,0.00021917,2]
[315923467,1709284239504,-500.0,0.00021917,2]
[315923468,1709284239514,-500.0,0.00021917,2]
[315923469,1709284239523,-500.0,0.00021917,2]
[315923470,1709284239532,-500.0,0.00021917,2]
[315923471,1709284239541,-500.0,0.00021917,2]
[315923472,1709284239550,-500.0,0.00021917,2]
[315923473,1709284239559,-500.0,0.00021917,2]
[315923474,1709284239568,-500.0,0.00021917,2]
[315923475,1709284239577,-500.0,0.00021917,2]
[315923476,1709284239586,-500.0,0.00021917,2]
[315923477,1709284239595,-500.0,0.00021917,2]
[315923478,1709284239605,-500.0,0.00021917,2]
[315923479,1709284239615,-698.08,0.00021917,2]
[315923480,1709284239624,-500.0,0.00021917,2]
[315923482,1709284239633,-500.0,0.00021917,2]
[315923483,1709284239642,-500.0,0.00021917,2]
[315923484,1709284239652,-500.0,0.00021917,2]
[315923485,1709284239660,-500.0,0.00021917,2]
[315923486,1709284239670,-500.0,0.00021917,2]
[315923487,1709284239679,-500.0,0.00021917,2]
[315923488,1709284239688,-500.0,0.00021917,2]
[315923489,1709284239697,-500.0,0.00021917,2]
[315923490,1709284239706,-1610.24,0.00021917,2]
[315923491,1709284239715,-500.0,0.00021917,2]
[315923492,1709284239724,-500.0,0.00021917,2]
[315923493,1709284239733,-680.85,0.00021917,2]
[315923494,1709284239742,-500.0,0.00021917,2]
[315923495,1709284239753,-500.0,0.00021917,2]
[315923496,1709284239762,-500.0,0.00021917,2]
[315923497,1709284239771,-708.11,0.00021917,2]
[315923498,1709284239780,-500.0,0.00021917,2]
[315923499,1709284239789,-500.0,0.00021917,2]
[315923500,1709284239799,-500.0,0.00021917,2]
[315923501,1709284239808,-500.0,0.00021917,2]
[315923502,1709284239817,-500.0,0.00021917,2]
[315923503,1709284239826,-500.0,0.00021917,2]
[315923504,1709284239835,-500.0,0.00021917,2]
[315923505,1709284239844,-500.0,0.00021917,2]
[315923506,1709284239853,-839.09,0.00021917,2]
[315923507,1709284239863,-500.0,0.00021917,2]
[315923508,1709284239873,-500.0,0.00021917,2]
[315923509,1709284239882,-500.0,0.00021917,2]
[315923510,1709284239891,-500.0,0.00021917,2]
[315923511,1709284239900,-500.0,0.00021917,2]
[315923512,1709284239909,-500.0,0.00021917,2]
[315923513,1709284239918,-500.0,0.00021917,2]
[315923514,1709284239928,-500.0,0.00021917,2]
[315923515,1709284239937,-500.0,0.00021917,2]
[315923516,1709284239946,-500.0,0.00021917,2]
[315923517,1709284239956,-500.0,0.00021917,2]
[315923518,1709284239965,-500.0,0.00021917,2]
[315923519,1709284239974,-500.0,0.00021917,2]
[315923520,1709284239983,-500.0,0.00021917,2]
[315923521,1709284239993,-500.0,0.00021917,2]
[315923522,1709284240005,-500.0,0.00021917,2]
[315923523,1709284240015,-500.0,0.00021917,2]
[315923524,1709284240025,-500.0,0.00021917,2]
[315923525,1709284240034,-500.0,0.00021917,2]
[315923526,1709284240044,-500.0,0.00021917,2]
[315923527,1709284240055,-500.0,0.00021917,2]
[315923528,1709284240065,-221.39606701,0.00021917,2]
[315923529,1709284240076,-500.0,0.00021917,2]
[315923530,1709284240086,-541.95813595,0.00021917,2]
[315923531,1709284240096,-613.33,0.00021917,2]
[315923532,1709284240106,-500.0,0.00021917,2]
[315923533,1709284240119,-500.0,0.00021917,2]
[315923534,1709284240131,-646.81473064,0.00021917,2]
[315923535,1709284240140,-1232.63,0.00021917,2]
[315923536,1709284240150,-500.0,0.00021917,2]
[315923537,1709284240160,-500.0,0.00021917,2]
[315923538,1709284240170,-500.0,0.00021917,2]
[315923539,1709284240180,-500.0,0.00021917,2]
[315923540,1709284240189,-664.86,0.00021917,2]
[315923541,1709284240198,-500.0,0.00021917,2]
[315923542,1709284240209,-500.0,0.00021917,2]
[315923543,1709284240220,-500.0,0.00021917,2]
[315923544,1709284240229,-592.86,0.00021917,2]
[315923546,1709284240238,-500.0,0.00021917,2]
[315923548,1709284240250,-500.0,0.00021917,2]
[315923549,1709284240259,-516.04795387,0.00021917,2]
[315923551,1709284240268,-500.0,0.00021917,2]
[315923553,1709284240277,-500.0,0.00021917,2]
[315923555,1709284240286,-500.0,0.00021917,2]
[315923557,1709284240295,-500.0,0.00021917,2]
[315923559,1709284240304,-500.0,0.00021917,2]
[315923561,1709284240314,-617.12,0.00021917,2]
[315923563,1709284240323,-500.0,0.00021917,2]
[315923565,1709284240332,-500.0,0.00021917,2]
[315923567,1709284240341,-519.81,0.00021917,2]
[315923568,1709284240351,-500.0,0.00021917,2]
[315923569,1709284240361,-500.0,0.00021917,2]
[315923570,1709284240369,-500.0,0.00021917,2]
[315923571,1709284240378,-500.0,0.00021917,2]
[315923572,1709284240388,-500.0,0.00021917,2]
[315923573,1709284240397,-500.0,0.00021917,2]
[315923574,1709284240407,-500.0,0.00021917,2]
[315923576,1709284240417,-500.0,0.00021917,2]
[315923577,1709284240427,-500.0,0.00021917,2]
[315923578,1709284240436,-599.26,0.00021917,2]
[315923579,1709284240446,-500.0,0.00021917,2]
[315923580,1709284240455,-500.0,0.00021917,2]
[315923581,1709284240465,-500.0,0.00021917,2]
[315923582,1709284240474,-500.0,0.00021917,2]
[315923583,1709284240485,-500.0,0.00021917,2]
[315923584,1709284240494,-500.0,0.00021917,2]
[315923585,1709284240506,-500.0,0.00021917,2]
[315923586,1709284240516,-594.08,0.00021917,2]
[315923587,1709284240526,-500.0,0.00021917,2]
[315923588,1709284240536,-500.0,0.00021917,2]
[315923589,1709284240546,-500.0,0.00021917,2]
[315923590,1709284240556,-576.43572682,0.00021917,2]
[315923591,1709284240566,-500.0,0.00021917,2]
[315923592,1709284240576,-500.0,0.00021917,2]
[315923593,1709284240585,-1351.54,0.00021917,2]
[315923594,1709284240595,-500.0,0.00021917,2]
[315923595,1709284240605,-500.0,0.00021917,2]
[315923596,1709284240615,-500.0,0.00021917,2]
[315923597,1709284240625,-500.0,0.00021917,2]
[315923598,1709284240634,-500.0,0.00021917,2]
[315923599,1709284240644,-500.0,0.00021917,2]
[315923600,1709284240654,-500.0,0.00021917,2]
[315923601,1709284240664,-500.0,0.00021917,2]
[315923602,1709284240674,-500.0,0.00021917,2]
[315923603,1709284240683,-1538.66,0.00021917,2]
[315923604,1709284240693,-500.0,0.00021917,2]
[315923605,1709284240703,-500.0,0.00021917,2]
[315923606,1709284240713,-500.0,0.00021917,2]
[315923607,1709284240723,-500.0,0.00021917,2]
[315923608,1709284240732,-500.0,0.00021917,2]
[315923609,1709284240742,-500.0,0.00021917,2]
[315923610,1709284240754,-500.0,0.00021917,2]
[315923611,1709284240763,-500.0,0.00021917,2]
[315923612,1709284240773,-500.0,0.00021917,2]
[315923613,1709284240784,-500.0,0.00021917,2]
[315923614,1709284240794,-500.0,0.00021917,2]
[315923615,1709284240804,-500.0,0.00021917,2]
[315923616,1709284240813,-500.0,0.00021917,2]
[315923617,1709284240823,-500.0,0.00021917,2]
[315923618,1709284240833,-664.81,0.00021917,2]
[315923619,1709284240843,-500.0,0.00021917,2]
[315923620,1709284240853,-500.0,0.00021917,2]
[315923621,1709284240863,-500.0,0.00021917,2]
[315923622,1709284240873,-500.0,0.00021917,2]
[315923623,1709284240883,-744.52,0.00021917,2]
[315923624,1709284240893,-500.0,0.00021917,2]
[315923625,1709284240903,-500.0,0.00021917,2]
[315923626,1709284240913,-500.0,0.00021917,2]
[315923627,1709284240923,-500.0,0.00021917,2]
[315923628,1709284240933,-500.0,0.00021917,2]
[315923629,1709284240943,-500.0,0.00021917,2]
[315923630,1709284240953,-500.0,0.00021917,2]
[315923631,1709284240963,-500.0,0.00021917,2]
[315923632,1709284240973,-500.0,0.00021917,2]
[315923633,1709284240983,-500.0,0.00021917,2]
[315923634,1709284240992,-500.0,0.00021917,2]
[315923635,1709284241005,-665.23,0.00021917,2]
[315923636,1709284241015,-500.0,0.00021917,2]
[315923637,1709284241025,-500.0,0.00021917,2]
[315923638,1709284241035,-500.0,0.00021917,2]
[315923639,1709284241046,-500.0,0.00021917,2]
[315923640,1709284241056,-500.0,0.00021917,2]
[315923641,1709284241065,-738.25,0.00021917,2]
[315923642,1709284241075,-500.0,0.00021917,2]
[315923643,1709284241085,-684.18,0.00021917,2]
[315923644,1709284241095,-500.0,0.00021917,2]
[315923645,1709284241104,-500.0,0.00021917,2]
[315923646,1709284241114,-500.0,0.00021917,2]
[315923647,1709284241123,-500.0,0.00021917,2]
[315923648,1709284241133,-1300.35,0.00021917,2]
[315923649,1709284241145,-570.00060321,0.00021917,2]
[315923650,1709284241155,-500.0,0.00021917,2]
[315923651,1709284241164,-500.0,0.00021917,2]
[315923652,1709284241174,-500.0,0.00021917,2]
[315923653,1709284241186,-500.0,0.00021917,2]
[315923654,1709284241196,-500.0,0.00021917,2]
[315923655,1709284241205,-500.0,0.00021917,2]
[315923656,1709284241218,-500.0,0.00021917,2]
[315923657,1709284241228,-500.0,0.00021917,2]
[315923658,1709284241238,-1065.95,0.00021917,2]
[315923659,1709284241250,-516.924859,0.00021917,2]
[315923660,1709284241259,-500.0,0.00021917,2]
[315923661,1709284241269,-550.57,0.00021917,2]
[315923662,1709284241279,-504.15792063,0.00021917,2]
[315923663,1709284241290,-500.0,0.00021917,2]
[315923664,1709284241300,-560.48,0.00021917,2]
[315923665,1709284241310,-500.0,0.00021917,2]
[315923666,1709284241320,-830.99,0.00021917,2]
[315923667,1709284241329,-500.0,0.00021917,2]
[315923668,1709284241339,-500.0,0.00021917,2]
[315923669,1709284241349,-512.27317073,0.00021917,2]
[315923670,1709284241358,-500.0,0.00021917,2]
[315923671,1709284241368,-500.0,0.00021917,2]
[315923672,1709284241377,-500.0,0.00021917,2]
[315923673,1709284241387,-500.0,0.00021917,2]
[315923674,1709284241397,-500.0,0.00021917,2]
[315923675,1709284241406,-500.0,0.00021917,2]
[315923676,1709284241416,-902.89,0.00021917,2]
[315923677,1709284241425,-500.0,0.00021917,2]
[315923678,1709284241435,-503.47564587,0.00021917,2]
[315923679,1709284241444,-500.0,0.00021917,2]
[315923680,1709284241454,-500.0,0.00021917,2]
[315923681,1709284241464,-500.0,0.00021917,2]
[315923682,1709284241474,-500.0,0.00021917,2]
[315923683,1709284241483,-500.0,0.00021917,2]
[315923684,1709284241494,-520.93268991,0.00021917,2]
[315923685,1709284241505,-500.0,0.00021917,2]
[315923686,1709284241514,-514.37561833,0.00021917,2]
[315923687,1709284241524,-500.0,0.00021917,2]
[315923688,1709284241535,-590.37,0.00021917,2]
[315923689,1709284241545,-500.0,0.00021917,2]
[315923690,1709284241554,-500.0,0.00021917,2]
[315923691,1709284241564,-500.0,0.00021917,2]
[315923692,1709284241574,-500.0,0.00021917,2]
[315923693,1709284241584,-569.43,0.00021917,2]
[315923694,1709284241594,-500.0,0.00021917,2]
[315923695,1709284241604,-500.0,0.00021917,2]
[315923696,1709284241614,-500.0,0.00021917,2]
[315923697,1709284241623,-500.0,0.00021917,2]
[315923698,1709284241633,-511.29258786,0.00021917,2]
[315923699,1709284241642,-549.12452475,0.00021917,2]
[315923700,1709284241652,-500.0,0.00021917,2]
[315923701,1709284241662,-500.0,0.00021917,2]
[315923702,1709284241672,-500.0,0.00021917,2]
[315923703,1709284241682,-584.02086554,0.00021917,2]
[315923704,1709284241692,-583.78,0.00021917,2]
[315923705,1709284241702,-655.4,0.00021917,2]
[315923706,1709284241712,-500.0,0.00021917,2]
[315923707,1709284241722,-331.73281161,0.00021917,2]
[315923708,1709284241733,-500.0,0.00021917,2]
[315923709,1709284241743,-500.0,0.00021917,2]
[315923710,1709284241755,-500.0,0.00021917,2]
[315923711,1709284241766,-500.0,0.00021917,2]
[315923712,1709284241776,-500.0,0.00021917,2]
[315923713,1709284241786,-500.0,0.00021917,2]
[315923714,1709284241797,-500.0,0.00021917,2]
[315923715,1709284241807,-500.0,0.00021917,2]
[315923716,1709284241817,-828.53,0.00021917,2]
[315923717,1709284241826,-500.0,0.00021917,2]
[315923718,1709284241837,-500.0,0.00021917,2]
[315923719,1709284241847,-500.0,0.00021917,2]
[315923720,1709284241858,-500.0,0.00021917,2]
[315923721,1709284241868,-500.0,0.00021917,2]
[315923722,1709284241878,-1318.72,0.00021917,2]